Workbook

Sheet Sheet1
B1: Color I want to count: | E1: Hoover over the coment in cell A1.
A4: Division | B4: Hours | C4: PayRate | D4: GrossPay | E4: Output | F4: Cost | G4: Per Week
A5: Anacortes | B5: 40 | C5: 23 | D5: =B5*C5 -> 920 | E5: =D5/$D$44 -> 0.03190412118 | F5: =G5*365+2000 -> 12713.40389 | G5: =E5*D5 -> 29.35179149
A6: Anacortes | B6: 40 | C6: 24 | D6: 960 | E6: =D6/$D$44 -> 0.03329125688 | F6: =G6*365+2000 -> 13665.25641 | G6: 31.95960661
A7: Anacortes | B7: 40 | C7: 23 | D7: 920 | E7: =D7/$D$44 -> 0.03190412118 | F7: 12713.40389 | G7: 29.35179149
A8: Bremerton | B8: 32 | C8: 22.25 | D8: 712 | E8: =D8/$D$44 -> 0.02469101552 | F8: 8416.701114 | G8: 17.58000305
A9: Bremerton | B9: 36 | C9: 15.45 | D9: 556.2 | E9: =D9/$D$44 -> 0.01928812196 | F9: 5915.739503 | G9: 10.72805343
A10: Bremerton | B10: 36 | C10: 15.45 | D10: 556.2 | E10: =D10/$D$44 -> 0.01928812196 | F10: 5915.739503 | G10: 10.72805343
A11: Hoquiam | B11: 40 | C11: 21.5 | D11: 860 | E11: =D11/$D$44 -> 0.02982341762 | F11: 11361.57079 | G11: 25.64813916
A12: Hoquiam | B12: 40 | C12: 22 | D12: 880 | E12: =D12/$D$44 -> 0.03051698548 | F12: 11802.05574 | G12: 26.85494722
A13: Sedro Woolley | B13: 40 | C13: 14 | D13: 560 | E13: =D13/$D$44 -> 0.01941989985 | F13: 5969.427529 | G13: 10.87514392
A14: Sedro Woolley | B14: 40 | C14: 14 | D14: 560 | E14: =D14/$D$44 -> 0.01941989985 | F14: 5969.427529 | G14: 10.87514392
A15: Sedro Woolley | B15: 40 | C15: 23 | D15: 920 | E15: =D15/$D$44 -> 0.03190412118 | F15: 12713.40389 | G15: 29.35179149
A16: Walla Walla | B16: 40 | C16: 18.5 | D16: 740 | E16: =D16/$D$44 -> 0.02566201051 | F16: 8931.30904 | G16: 18.98988778
A17: Walla Walla | B17: 32 | C17: 17 | D17: 544 | E17: =D17/$D$44 -> 0.01886504557 | F17: 5745.843448 | G17: 10.26258479
A18: Yakima | B18: 40 | C18: 24.75 | D18: 990 | E18: =D18/$D$44 -> 0.03433160866 | F18: 14405.72679 | G18: 33.98829257
A19: Yakima | B19: 40 | C19: 24.75 | D19: 990 | E19: =D19/$D$44 -> 0.03433160866 | F19: 14405.72679 | G19: 33.98829257
A20: Yakima | B20: 40 | C20: 21.8 | D20: 872 | E20: =D20/$D$44 -> 0.03023955834 | F20: 11624.64663 | G20: 26.36889487
A21: Anacortes | B21: 40 | C21: 18 | D21: 720 | E21: =D21/$D$44 -> 0.02496844266 | F21: 8561.706732 | G21: 17.97727872
A22: Anacortes | B22: 40 | C22: 18 | D22: 720 | E22: =D22/$D$44 -> 0.02496844266 | F22: 8561.706732 | G22: 17.97727872
A23: Anacortes | B23: 40 | C23: 17 | D23: 680 | E23: =D23/$D$44 -> 0.02358130696 | F23: 7852.880387 | G23: 16.03528873
A24: Yakima | B24: 40 | C24: 17.25 | D24: 690 | E24: =D24/$D$44 -> 0.02392809089 | F24: 8026.289689 | G24: 16.51038271
A25: Yakima | B25: 32 | C25: 23.25 | D25: 744 | E25: =D25/$D$44 -> 0.02580072408 | F25: 9006.444632 | G25: =E25*D25 -> 19.19573872
A26: Anacortes | B26: 32 | C26: 14 | D26: 448 | E26: =D26/$D$44 -> 0.01553591988 | F26: 4540.433619 | G26: 6.960092106
A27: Anacortes | B27: 32 | C27: 14 | D27: 448 | E27: =D27/$D$44 -> 0.01553591988 | F27: 4540.433619 | G27: 6.960092106
A28: Anacortes | B28: 36 | C28: 23.25 | D28: 837 | E28: =D28/$D$44 -> 0.0290258146 | F28: 10867.53149 | G28: 24.29460682
A29: Anacortes | B29: 36 | C29: 23.25 | D29: 837 | E29: =D29/$D$44 -> 0.0290258146 | F29: 10867.53149 | G29: 24.29460682
A30: Bremerton | B30: 40 | C30: 14 | D30: 560 | E30: =D30/$D$44 -> 0.01941989985 | F30: 5969.427529 | G30: 10.87514392
A31: Hoquiam | B31: 40 | C31: 14 | D31: 560 | E31: =D31/$D$44 -> 0.01941989985 | F31: 5969.427529 | G31: 10.87514392
A32: Hoquiam | B32: 40 | C32: 14 | D32: 560 | E32: =D32/$D$44 -> 0.01941989985 | F32: 5969.427529 | G32: 10.87514392
A33: Sedro Woolley | B33: 36 | C33: 17.25 | D33: 621 | E33: =D33/$D$44 -> 0.0215352818 | F33: 6881.294648 | G33: 13.37341
A34: Walla Walla | B34: 40 | C34: 23 | D34: =B34*C34 -> 920 | E34: =D34/$D$44 -> 0.03190412118 | F34: 12713.40389 | G34: =E34*D34 -> 29.35179149
A35: Walla Walla | B35: 40 | C35: 24 | D35: 960 | E35: =D35/$D$44 -> 0.03329125688 | F35: =G35*365+2000 -> 13665.25641 | G35: 31.95960661
A36: Wenatchee | B36: 36 | C36: 14.25 | D36: 513 | E36: =D36/$D$44 -> 0.0177900154 | F36: 5331.091433 | G36: 9.126277899
A37: Wenatchee | B37: 40 | C37: 23.35 | D37: 934 | E37: =D37/$D$44 -> 0.03238961868 | F37: 13041.9449 | G37: 30.25190384
A38: Yakima | B38: 36 | C38: 22 | D38: 792 | E38: =D38/$D$44 -> 0.02746528693 | F38: 9939.665145 | G38: 21.75250725
A39: Yakima | B39: 36 | C39: 22 | D39: 792 | E39: =D39/$D$44 -> 0.02746528693 | F39: 9939.665145 | G39: 21.75250725
A40: Anacortes | B40: 40 | C40: 22 | D40: 880 | E40: =D40/$D$44 -> 0.03051698548 | F40: 11802.05574 | G40: 26.85494722
A41: Anacortes | B41: 40 | C41: 15 | D41: 600 | E41: =D41/$D$44 -> 0.02080703555 | F41: 6556.740786 | G41: 12.48422133
A42: Yakima | B42: 40 | C42: 14 | D42: 560 | E42: =D42/$D$44 -> 0.01941989985 | F42: 5969.427529 | G42: 10.87514392
A43: Yakima | B43: 40 | C43: 23 | D43: 920 | E43: =D43/$D$44 -> 0.03190412118 | F43: 12713.40389 | G43: 29.35179149
A44: =CountCcolor(A5:A43,D1) -> 12 | D44: =SUM(D5:D43) -> 28836.4
